bitfinex/quotes_SOLUSD_20241009
["timestamp","ask_amount","ask_price","bid_price","bid_amount"]
[1728513880778,21.43143289,139.44,139.38,1.43473104]
[1728513880779,7.1726,139.42,139.38,7.1745]
[1728513880976,7.1726,139.42,139.39,23.776884]
[1728513881189,6.4458,139.48,139.41,23.776884]
[1728513881190,1.43143289,139.48,139.41,23.776884]
[1728513881484,52.5096,139.52,139.4,15.5274]
[1728513881485,1.43143289,139.47,139.4,15.5274]
[1728513881689,7.1721,139.43,139.4,15.5274]
[1728513881855,7.1726,139.42,139.4,15.5274]
[1728513882059,7.1721,139.43,139.4,15.5274]
[1728513884864,1.43143289,139.42,139.36,13.497]
[1728513885164,7.1734,139.41,139.37,7.175]
[1728513886764,1.43143289,139.44,139.38,23.776884]
[1728513887079,7.1711,139.45,139.4,7.1734]
[1728513887285,7.1715,139.44,139.4,7.1734]
[1728513891188,7.1714,139.45,139.4,7.1734]
[1728513891883,21.43143289,139.44,139.39,1.43426115]
[1728513892088,7.1734,139.41,139.35,17.9401]
[1728513893390,7.1734,139.41,139.37,7.1751]
[1728513894469,17.9284,139.45,139.32,7.1775]
[1728513894470,7.1752,139.37,139.32,7.1775]
[1728513894765,21.43143289,139.4,139.31,18.7763061]
[1728513894766,7.1757,139.36,139.31,25.9544061]
[1728513895065,7.1762,139.35,139.31,18.7763061]
[1728513895483,7.1757,139.36,139.31,25.9544061]
[1728513895886,21.43143289,139.4,139.31,18.7763061]
[1728513896097,7.1752,139.37,139.32,7.1774]
[1728513896281,7.1752,139.37,139.32,77.1774]
[1728513896675,7.1752,139.37,139.33,23.776884]
[1728513897174,7.1752,139.37,139.33,30.953884]
[1728513898801,21.43143289,139.4,139.34,7.1765]
[1728513899576,21.43143289,139.4,139.33,41.718884]
[1728513899777,21.43143289,139.4,139.33,48.895584]
[1728513899778,7.1749,139.38,139.33,48.895584]
[1728513899973,7.1742,139.39,139.34,0.12549]
[1728513900200,7.1742,139.39,139.35,7.1761]
[1728513902283,1.43143289,139.41,139.35,7.1761]
[1728513902597,1.43143289,139.44,139.37,7.175]
[1728513902794,1.43143289,139.44,139.37,25.1118]
[1728513902795,7.1734,139.41,139.37,25.1118]
[1728513902997,7.1734,139.41,139.37,17.9368]
[1728513904379,7.1734,139.41,139.37,25.1119]
[1728513909706,21.43143289,139.44,139.37,17.9368]
[1728513910008,7.172,139.43,139.39,7.1739]
[1728513910212,7.172,139.43,139.4,1.43446496]
[1728513911185,7.1719,139.44,139.4,1.43446496]
[1728513911609,7.1721,139.43,139.39,7.1739]
[1728513914112,7.1721,139.43,139.4,1.43442685]
[1728513914694,7.1721,139.43,139.39,7.1739]
[1728513915214,7.1721,139.43,139.4,1.43435806]
[1728513917021,21.43143289,139.46,139.4,1.43435806]
[1728513917022,7.1711,139.45,139.4,8.60755806]
[1728513917806,7.1711,139.45,139.41,7.1729]
[1728513917997,7.1711,139.45,139.42,1.4342251]
[1728513921717,7.1711,139.45,139.41,7.1729]
[1728513924321,7.1711,139.45,139.42,23.776884]
[1728513926021,7.1711,139.45,139.41,7.1729]
[1728513928132,7.1711,139.45,139.42,1.43418989]
[1728513928510,7.1711,139.45,139.43,1.43418993]
[1728513928717,17.9247,139.48,139.44,7.1715]
[1728513928718,7.1698,139.48,139.44,7.1715]
[1728513929031,7.1698,139.48,139.45,1.43396973]
[1728513929821,7.17,139.47,139.45,1.43396973]
[1728513930027,7.17,139.47,139.44,1.43396575]
[1728513930621,7.1695,139.48,139.44,8.60536575]
[1728513931326,7.1695,139.48,139.44,7.1714]
[1728513931529,7.1695,139.48,139.45,1.43392339]
[1728513935215,21.43143289,139.5,139.45,1.43392339]
[1728513935420,7.1694,139.49,139.44,8.60520323]
[1728513935732,7.1695,139.48,139.45,1.43390326]
[1728513938933,7.1691,139.49,139.46,1.43390542]
[1728513939614,7.1691,139.49,139.45,7.171]
[1728513940227,7.1685,139.5,139.46,7.1704]
[1728513941122,7.1685,139.5,139.44,70.0]
[1728513941123,7.168,139.51,139.47,8.60356916]
[1728513942636,7.1675,139.52,139.48,7.1693]
[1728513942837,7.1675,139.52,139.49,1.43347599]
[1728513943437,7.1669,139.53,139.49,8.60217599]
[1728513943841,7.1669,139.53,139.49,7.1687]
[1728513944215,21.43143289,139.56,139.49,23.776884]
[1728513944416,7.167,139.53,139.49,48.867684]
[1728513946741,7.167,139.53,139.47,16.25199]
[1728513946742,7.1693,139.49,139.47,16.1265]
[1728513947036,7.1685,139.5,139.47,16.1265]
[1728513947244,17.9179,139.53,139.47,16.1265]
[1728513947417,7.168,139.51,139.47,23.2964]
[1728513958553,7.168,139.51,139.47,16.1265]
[1728513958728,7.168,139.51,139.46,13.2008]
[1728513960146,7.168,139.51,139.46,6.0305]
[1728513960351,7.168,139.51,139.47,7.1699]
[1728513966749,7.168,139.51,139.46,6.0305]
[1728513966750,1.43143289,139.5,139.45,17.9271]
[1728513967049,7.1692,139.49,139.45,25.098]
[1728513967423,1.43143289,139.48,139.43,15.6344]
[1728513967652,7.1711,139.45,139.42,17.9311]
[1728513967835,21.43143289,139.49,139.42,17.9311]
[1728513968147,7.1701,139.47,139.43,7.1718]
[1728513968353,7.1696,139.48,139.44,7.1713]
[1728513969632,7.1696,139.48,139.42,31.77959768]
[1728513969842,7.1696,139.48,139.43,7.1719]
[1728513974341,21.43143289,139.51,139.43,7.1719]
[1728513974547,7.17,139.47,139.43,7.1719]
[1728513986680,1.43143289,139.51,139.42,17.9311]
[1728513986849,28.59943289,139.51,139.47,7.1696]
[1728513987049,2.5323056,139.53,139.46,17.926]
[1728513987375,7.1674,139.52,139.48,7.1694]
[1728513987565,7.1674,139.52,139.46,17.926]
[1728513987954,7.167,139.53,139.48,17.9233]
[1728513988281,1.43143289,139.52,139.46,7.17]
[1728513988472,1.43143289,139.54,139.46,7.17]
[1728513989053,7.168,139.51,139.46,7.17]
[1728513989979,7.168,139.51,139.47,7.1699]
[1728513993469,7.1675,139.52,139.48,7.1694]
[1728513997262,7.1675,139.52,139.47,7.1698]
[1728514000286,7.1675,139.52,139.46,23.902374]
[1728514000460,7.1675,139.52,139.48,7.1694]
[1728514005777,7.1679,139.51,139.47,25.0946]
[1728514009585,1.43143289,139.54,139.47,17.9248]
[1728514009889,7.1675,139.52,139.48,7.1693]
[1728514011767,7.168,139.51,139.47,87.9248]
[1728514012489,7.1676,139.52,139.48,7.1694]
[1728514013282,1.43143289,139.54,139.47,87.9248]
[1728514013462,7.1675,139.52,139.48,7.1694]
[1728514021193,7.1672,139.53,139.49,7.1689]
[1728514021906,7.1674,139.52,139.48,7.1692]
[1728514022890,7.1689,139.49,139.46,7.1704]
[1728514023076,7.1681,139.51,139.45,70.0]
[1728514023283,7.1681,139.51,139.47,7.1699]
[1728514024192,1.43143289,139.5,139.44,15.5752]
[1728514024396,10.2264,139.53,139.44,15.5752]
[1728514024397,7.1698,139.48,139.44,15.5752]
[1728514025601,7.17,139.47,139.44,15.5752]
[1728514026098,7.17,139.47,139.43,25.101]
[1728514029295,7.1706,139.46,139.42,7.1724]
[1728514030280,7.171,139.45,139.41,29.6664]
[1728514030478,7.1715,139.44,139.41,16.0755]
[1728514031293,7.172,139.43,139.4,17.9332]
[1728514033508,7.1716,139.44,139.4,17.9332]
[1728514033692,7.1721,139.43,139.39,7.174]
[1728514034795,21.43143289,139.47,139.39,7.174]
[1728514035095,7.1716,139.44,139.39,7.174]
[1728514045079,7.1716,139.44,139.39,23.902374]
[1728514045285,7.1716,139.44,139.4,7.1735]
[1728514056294,21.43143289,139.47,139.4,7.1735]
[1728514056497,7.1703,139.47,139.43,7.1715]
[1728514056808,7.1701,139.47,139.44,1.43406814]
[1728514056987,7.1701,139.47,139.43,7.1715]
[1728514056988,7.1701,139.47,139.41,87.9323]
[1728514057196,7.1701,139.47,139.42,7.1723]
[1728514058789,7.1706,139.46,139.42,7.1723]
[1728514063394,7.17,139.47,139.43,7.1719]
[1728514066810,1.43143289,139.5,139.41,17.9323]
[1728514066811,1.43143289,139.46,139.41,17.9323]
[1728514067019,7.1713,139.45,139.41,25.1052]
[1728514067318,7.1716,139.44,139.41,17.9323]
[1728514067901,7.1711,139.45,139.41,25.1053]
[1728514074118,7.172,139.43,139.39,100.950584]
[1728514074512,21.43143289,139.47,139.39,93.776884]
[1728514074703,7.1717,139.44,139.4,7.1735]
[1728514077108,7.1712,139.45,139.41,7.1728]
[1728514077722,7.1712,139.45,139.4,17.9333]
[1728514077723,21.43143289,139.47,139.4,17.9333]
[1728514077923,7.1711,139.45,139.41,7.1727]
[1728514078701,7.1707,139.46,139.42,7.1725]
[1728514079217,7.171,139.45,139.41,7.173]
[1728514079928,7.1707,139.46,139.42,7.1725]
[1728514081329,7.1711,139.45,139.41,7.1728]
[1728514081718,21.43143289,139.47,139.4,17.9333]
[1728514082226,7.1721,139.43,139.4,17.9333]
[1728514082403,7.1716,139.44,139.4,25.1068]
[1728514095438,21.43143289,139.47,139.4,31.78179768]
[1728514095637,7.1705,139.46,139.42,7.1724]
[1728514099237,7.17,139.47,139.43,7.1717]
[1728514100316,7.1695,139.48,139.44,7.1713]
[1728514100519,28.71831258,139.53,139.45,1.43392898]
[1728514100520,1.43143289,139.52,139.45,1.43392898]
[1728514100722,7.1687,139.5,139.46,7.17]
[1728514101236,1.43143289,139.52,139.46,7.17]
[1728514101537,7.1681,139.51,139.45,70.0]
[1728514101841,7.1681,139.51,139.47,7.1698]
[1728514103330,7.1677,139.52,139.48,7.1693]
[1728514103543,7.1677,139.52,139.49,1.43355904]
[1728514104117,7.1677,139.52,139.48,7.1693]
[1728514110027,21.43143289,139.56,139.49,1.43349396]
[1728514110230,7.1663,139.55,139.5,25.0887]
[1728514110555,7.1665,139.54,139.5,25.0887]
[1728514110748,7.167,139.53,139.49,7.1688]
[1728514111128,7.167,139.53,139.48,31.197164]
[1728514111444,7.167,139.53,139.49,7.1688]
[1728514115447,7.1664,139.54,139.5,7.1683]
[1728514117452,7.1671,139.53,139.49,25.0909]
[1728514126857,1.43143289,139.56,139.49,25.0909]
[1728514126858,1.43143289,139.56,139.49,17.9221]
[1728514127069,7.1665,139.54,139.5,7.1683]
[1728514131062,1.43143289,139.56,139.49,87.9221]
[1728514131277,7.1659,139.55,139.51,25.0863]
[1728514134476,7.1669,139.53,139.49,7.1689]
[1728514134656,20.0,139.56,139.49,23.776884]
[1728514134967,7.1675,139.52,139.49,23.776884]
[1728514136460,1.43143289,139.55,139.49,23.776884]
[1728514136651,7.167,139.53,139.49,23.776884]
[1728514137973,7.167,139.53,139.49,30.945784]
[1728514138973,7.1675,139.52,139.49,23.776884]
[1728514140076,1.43143289,139.55,139.47,16.35729]
[1728514140252,1.43143289,139.55,139.47,16.2318]
[1728514140253,7.1685,139.5,139.47,16.2318]
[1728514140650,36.22933289,139.55,139.47,16.2318]
[1728514140874,7.168,139.51,139.47,23.4017]
[1728514141571,21.43143289,139.54,139.48,23.776884]
[1728514141747,21.43143289,139.54,139.49,7.1688]
[1728514141748,7.1672,139.53,139.49,7.1688]
[1728514142173,7.1672,139.53,139.48,30.946184]
[1728514142554,7.1676,139.52,139.48,30.946184]
[1728514142755,21.43143289,139.54,139.47,41.3261]
[1728514142954,7.1683,139.51,139.47,34.1563]
[1728514143255,7.1691,139.49,139.47,16.2318]
[1728514143454,7.1691,139.49,139.45,7.1708]
[1728514146269,7.1698,139.48,139.44,17.9279]
[1728514146584,7.1695,139.48,139.44,7.1715]
[1728514146784,7.169,139.49,139.45,7.1709]
[1728514147084,7.1686,139.5,139.45,7.1709]
[1728514151891,7.1679,139.51,139.47,7.1699]
[1728514152095,7.1679,139.51,139.48,1.43365421]
[1728514154983,21.43143289,139.53,139.49,1.43364424]
[1728514155180,7.1676,139.52,139.49,1.43364424]
[1728514155378,7.1676,139.52,139.48,23.776884]
[1728514155579,1.43143289,139.53,139.48,23.776884]
[1728514155777,7.1675,139.52,139.48,30.945984]
[1728514156181,7.1669,139.53,139.49,7.1689]
[1728514160469,7.166,139.55,139.5,7.1683]
[1728514160664,1.43143289,139.54,139.5,7.1683]
[1728514160869,7.1667,139.54,139.5,7.1683]
[1728514164795,20.0,139.56,139.51,23.776884]
[1728514164980,1.43143289,139.56,139.51,23.776884]
[1728514165180,7.1664,139.54,139.51,23.776884]
[1728514168088,17.9129,139.57,139.51,23.776884]
[1728514168296,20.0,139.58,139.52,7.1673]
[1728514169087,1.43143289,139.57,139.52,7.1673]
[1728514169600,7.1654,139.56,139.53,1.4330894]
[1728514174299,1.43143289,139.55,139.5,6.1607]
[1728514174598,7.1675,139.52,139.48,40.9994]
[1728514174906,7.167,139.53,139.49,77.1688]
[1728514175604,7.167,139.53,139.49,7.1688]
[1728514175900,19.34523289,139.56,139.5,25.089]
[1728514175901,7.1664,139.54,139.5,25.089]
[1728514179995,7.1664,139.54,139.5,17.9207]
[1728514182613,7.1664,139.54,139.5,25.089]
[1728514197620,7.1674,139.52,139.49,23.776884]
[1728514197915,7.1687,139.5,139.48,15.9072]
[1728514198123,21.43143289,139.54,139.48,15.9072]
[1728514198419,7.168,139.51,139.48,15.9072]
[1728514200220,1.43143289,139.54,139.46,25.0962]
[1728514200529,1.43143289,139.54,139.46,17.9259]
[1728514200530,7.169,139.49,139.46,17.9259]
[1728514201815,7.1694,139.48,139.44,30.1435]
[1728514202617,1.43143289,139.47,139.43,17.9291]
[1728514202919,7.1701,139.47,139.43,17.9291]
[1728514203706,7.1695,139.48,139.43,25.101]
[1728514204203,7.1695,139.48,139.44,23.776884]
[1728514205224,7.1694,139.49,139.44,23.776884]
[1728514205520,8.59993289,139.5,139.45,24.72308082]
[1728514205712,7.1685,139.5,139.45,24.72308082]
[1728514206498,7.1685,139.5,139.46,30.947284]
[1728514206701,7.168,139.51,139.46,30.947284]
[1728514207120,8.59943289,139.51,139.46,30.947284]
[1728514207928,7.168,139.51,139.46,30.947284]
[1728514208311,7.168,139.51,139.47,8.60361162]
[1728514208997,7.168,139.51,139.47,7.1699]
[1728514210226,28.59873289,139.53,139.48,7.1693]
[1728514210409,27.1673,139.53,139.48,7.1693]
[1728514210605,20.0,139.53,139.48,7.1693]
[1728514210920,7.1675,139.52,139.48,7.1693]
[1728514211130,7.167,139.53,139.49,30.945684]
[1728514211629,1.43143289,139.52,139.45,22.7732]
[1728514211820,17.9209,139.51,139.45,22.7732]
[1728514212020,16.7975,139.54,139.45,22.7732]
[1728514212021,8.59993289,139.5,139.45,22.7732]
[1728514212319,7.1685,139.5,139.45,22.7732]
[1728514212930,1.43143289,139.53,139.45,22.7732]
[1728514212931,21.43143289,139.53,139.45,22.7732]
[1728514213118,7.169,139.49,139.45,29.9438]
[1728514213318,21.43143289,139.53,139.46,7.1701]
[1728514213824,7.1689,139.5,139.45,47.8711]
[1728514214613,1.43143289,139.52,139.46,23.776884]
[1728514215026,7.1684,139.5,139.46,30.946984]
[1728514216029,7.168,139.51,139.47,7.1699]
[1728514216231,7.168,139.51,139.48,23.776884]
[1728514216526,7.168,139.51,139.46,7.1703]
[1728514216731,7.168,139.51,139.47,23.776884]
[1728514216920,1.43143289,139.52,139.47,23.776884]
[1728514217119,7.1684,139.5,139.47,23.776884]
[1728514218035,7.1682,139.51,139.47,23.776884]
[1728514220638,1.43143289,139.5,139.46,23.776884]
[1728514220934,7.1694,139.48,139.46,23.776884]
[1728514221112,7.1691,139.49,139.46,23.776884]
[1728514226247,7.1705,139.46,139.45,16.1183]
[1728514226445,7.1705,139.46,139.43,24.027864]
[1728514226747,7.1701,139.47,139.43,24.027864]
[1728514226948,7.1706,139.46,139.43,23.776884]
[1728514227447,7.1701,139.47,139.43,23.776884]
[1728514228246,7.1701,139.47,139.43,30.948884]
[1728514228545,7.1706,139.46,139.43,23.776884]
[1728514229443,7.1713,139.45,139.42,15.4492]
[1728514233549,7.1716,139.44,139.41,17.9323]
[1728514233745,7.1716,139.44,139.4,77.1735]
[1728514233954,7.1716,139.44,139.41,23.776884]
[1728514236657,7.1716,139.44,139.4,23.776884]
[1728514236947,7.1721,139.43,139.4,23.776884]
[1728514238849,7.1717,139.44,139.4,23.776884]
[1728514239738,7.1724,139.43,139.4,23.776884]
[1728514241149,7.1716,139.44,139.4,23.776884]
[1728514241835,7.1716,139.44,139.4,30.950284]
[1728514242329,7.1708,139.46,139.41,7.1726]
[1728514242529,7.1694,139.48,139.44,7.1714]
[1728514242751,19.35203289,139.51,139.44,23.776884]
[1728514242752,7.17,139.47,139.44,23.776884]
[1728514242930,1.43143289,139.5,139.43,23.5088]
[1728514242931,7.1707,139.46,139.43,16.3369]
[1728514243259,7.1701,139.47,139.43,16.3369]
[1728514246439,21.43143289,139.5,139.43,16.3369]
[1728514246645,7.1705,139.46,139.43,16.3369]
[1728514256639,7.1715,139.44,139.41,23.776884]
[1728514256942,7.1721,139.43,139.4,15.3433]
[1728514257953,7.1721,139.43,139.39,24.3695]
[1728514258147,1.43143289,139.46,139.39,24.3695]
[1728514258664,7.1724,139.43,139.4,23.776884]
[1728514266964,7.1727,139.42,139.39,17.9341]
[1728514267273,7.1727,139.42,139.39,23.776884]
[1728514268174,7.173,139.41,139.38,23.776884]
[1728514268349,17.9278,139.45,139.37,15.3433]
[1728514268557,7.1742,139.39,139.35,7.1761]
[1728514275069,21.43143289,139.42,139.36,23.776884]
[1728514275378,7.1722,139.43,139.38,30.950984]
[1728514275548,7.1716,139.44,139.4,30.950384]
[1728514275874,7.1716,139.44,139.41,1.43443226]
[1728514276451,7.1716,139.44,139.4,23.776884]
[1728514280677,21.43143289,139.47,139.4,23.776884]
[1728514280877,7.1715,139.45,139.4,23.776884]
[1728514281063,7.1705,139.46,139.42,7.1724]
[1728514281257,8.60183289,139.47,139.43,1.43419876]
[1728514281460,7.1704,139.47,139.43,1.43419876]
[1728514281767,7.1709,139.46,139.42,7.1725]
[1728514284067,7.1709,139.46,139.42,23.8315]
[1728514290501,7.1691,139.49,139.45,7.1706]
[1728514293905,7.1701,139.47,139.43,17.9296]
[1728514295305,7.1706,139.46,139.43,17.9296]
[1728514299402,7.1701,139.47,139.43,17.9296]
[1728514299609,7.1701,139.47,139.43,25.1015]
[1728514302887,19.35283289,139.5,139.43,17.9296]
[1728514303093,7.1695,139.48,139.44,30.948184]
[1728514303700,1.43143289,139.47,139.43,23.776884]
[1728514303915,7.171,139.46,139.43,23.776884]
[1728514304220,7.1701,139.47,139.43,30.948884]
[1728514310603,7.1715,139.45,139.41,7.1729]
[1728514317305,7.1716,139.44,139.4,30.950284]
[1728514318928,8.60363289,139.43,139.39,25.1084]
[1728514319112,7.1722,139.43,139.39,25.1084]
[1728514323832,17.9264,139.46,139.39,17.9344]
[1728514324024,1.43143289,139.45,139.39,17.9344]
[1728514325110,21.43143289,139.45,139.36,17.9379]
[1728514325329,7.1736,139.4,139.36,25.1134]
[1728514326144,1.43143289,139.43,139.36,25.1134]
[1728514326145,7.1741,139.39,139.36,17.9379]
[1728514326430,7.1737,139.4,139.36,25.1135]
[1728514326635,7.1732,139.41,139.37,7.1748]
[1728514327171,8.60503289,139.4,139.36,25.1134]
[1728514327432,1.43143289,139.39,139.34,15.0361]
[1728514327815,7.1752,139.37,139.34,15.0361]
[1728514329613,7.1752,139.37,139.33,25.1187]
[1728514330429,7.1752,139.37,139.33,17.9419]
[1728514332833,7.1752,139.37,139.33,25.119]
[1728514334144,1.43143289,139.39,139.33,17.9419]
[1728514334330,8.60613289,139.38,139.34,7.1766]
[1728514335037,1.43143289,139.4,139.33,17.9419]
[1728514335242,1.43143289,139.4,139.32,13.84849768]
[1728514335243,8.60553289,139.4,139.36,7.1753]
[1728514336542,8.60553289,139.4,139.35,17.9395]
[1728514336747,8.60553289,139.4,139.35,25.1155]
[1728514338047,8.60553289,139.4,139.35,26.55040642]
[1728514339420,8.60553289,139.4,139.35,25.1155]
[1728514340636,1.43143289,139.4,139.35,25.1155]
[1728514340842,7.1741,139.39,139.35,25.1155]
[1728514344447,1.43143289,139.38,139.33,7.1766]
[1728514344743,7.1751,139.37,139.33,7.1766]
[1728514344951,7.1747,139.38,139.34,7.1766]
[1728514347428,7.1741,139.39,139.35,7.176]
[1728514347643,7.1736,139.4,139.36,8.61043899]
[1728514348333,7.1736,139.4,139.36,7.1755]
[1728514348558,8.60553289,139.39,139.35,30.952884]
[1728514348735,7.1741,139.39,139.35,30.952884]
[1728514349253,7.1741,139.39,139.34,17.9413]
[1728514349254,8.60613289,139.38,139.34,25.1179]
[1728514349552,7.1751,139.37,139.34,17.9413]
[1728514350247,7.1748,139.38,139.34,17.9413]
[1728514350752,7.1748,139.38,139.34,25.1177]
[1728514354560,7.1751,139.37,139.33,7.177]
[1728514355332,1.43143289,139.4,139.31,41.5355061]
[1728514355654,7.1752,139.37,139.33,7.1771]
[1728514357744,7.1746,139.38,139.34,8.61156596]
[1728514359551,7.1746,139.38,139.34,7.1765]
[1728514362855,8.60673289,139.37,139.33,17.9425]
[1728514363060,11.65783289,139.36,139.31,0.8319061]
[1728514363358,7.1777,139.32,139.31,0.8319061]
[1728514371970,7.1773,139.33,139.31,0.8319061]
[1728514373068,7.1777,139.32,139.31,0.8319061]
[1728514381656,7.1772,139.33,139.31,0.8319061]
[1728514385271,7.1767,139.34,139.31,0.8319061]
[1728514385476,7.1763,139.35,139.32,1.43539482]
[1728514385974,7.1763,139.35,139.32,1.4352927]
[1728514386179,7.1763,139.35,139.31,8.0098061]
[1728514386357,7.1763,139.35,139.32,23.776884]
[1728514388571,7.1777,139.32,139.31,0.8319061]
[1728514390559,21.43143289,139.35,139.31,0.8319061]
[1728514390764,7.1772,139.33,139.31,0.8319061]
[1728514397286,20.7222843,139.38,139.32,25.21225864]
[1728514397476,1.43143289,139.37,139.32,25.21225864]
[1728514397674,7.1765,139.35,139.32,23.776884]
[1728514402214,1.43143289,139.37,139.31,0.8319061]
[1728514402482,7.1777,139.32,139.31,0.8319061]
[1728514438424,7.1772,139.33,139.31,0.8319061]
[1728514438601,20.0,139.34,139.31,0.8319061]
[1728514438602,7.1768,139.34,139.31,0.8319061]
[1728514438805,21.43143289,139.36,139.31,0.8319061]
[1728514439006,7.1772,139.33,139.31,0.8319061]
[1728514439944,7.177,139.34,139.31,0.8319061]
[1728514441341,1.43143289,139.36,139.31,0.8319061]
[1728514441342,7.1772,139.33,139.31,0.8319061]
[1728514442118,21.43143289,139.37,139.32,23.776884]
[1728514442324,7.1767,139.34,139.32,23.776884]
[1728514445241,7.1763,139.35,139.32,23.776884]
[1728514445439,7.1761,139.36,139.33,1.43512269]
[1728514445734,7.1771,139.34,139.31,15.9211061]
[1728514446240,7.1776,139.33,139.31,15.9211061]
[1728514447448,7.177,139.34,139.32,23.776884]
[1728514447829,7.1763,139.35,139.32,23.776884]
[1728514453359,7.1763,139.35,139.33,1.4352179]
[1728514453646,7.1763,139.35,139.32,23.776884]
[1728514455842,7.1758,139.36,139.32,100.954184]
[1728514456054,37.9351,139.4,139.32,100.954184]
[1728514456055,1.43143289,139.4,139.34,6.559]
[1728514456347,41.9239,139.44,139.35,23.776884]
[1728514456348,7.175,139.38,139.35,23.776884]
[1728514459159,7.175,139.38,139.35,39.094584]
[1728514459361,7.1741,139.39,139.35,46.270584]
[1728514459658,7.1741,139.39,139.36,1.43475773]
[1728514460358,7.1741,139.39,139.35,46.270584]
[1728514463766,7.176,139.36,139.32,7.1775]
[1728514464261,1.43143289,139.39,139.31,87.0500061]
[1728514464441,7.1751,139.37,139.33,7.1771]
[1728514464837,7.1751,139.37,139.34,23.776884]
[1728514467148,7.1747,139.38,139.34,30.953484]
[1728514475260,1.43143289,139.41,139.35,70.25098]
[1728514475470,7.1732,139.41,139.37,7.30019]
[1728514475673,17.9297,139.44,139.38,25.21139084]
[1728514475674,7.1729,139.42,139.38,25.21139084]
[1728514476050,7.1729,139.42,139.38,23.776884]
[1728514476255,6.6729,139.42,139.38,30.951484]
[1728514477463,7.1721,139.43,139.38,23.776884]
[1728514477672,7.1716,139.44,139.4,30.950284]
[1728514477857,1.43143289,139.46,139.39,23.776884]
[1728514478062,7.1731,139.41,139.39,23.776884]
[1728514478259,1.43143289,139.46,139.39,23.776884]
[1728514478469,7.1727,139.42,139.39,23.776884]
[1728514479872,21.43143289,139.46,139.39,23.776884]
[1728514480081,7.1721,139.43,139.39,30.950784]
[1728514481057,7.1721,139.43,139.39,23.776884]
[1728514483055,7.1729,139.42,139.39,23.776884]
[1728514487061,21.43143289,139.46,139.39,23.776884]
[1728514487261,7.1722,139.43,139.39,23.776884]
[1728514493089,7.1722,139.43,139.39,30.950784]
[1728514493991,19.35943289,139.45,139.39,23.776884]
[1728514494167,7.1732,139.41,139.38,23.776884]
[1728514501993,19.35943289,139.45,139.38,23.776884]
[1728514502286,7.1727,139.42,139.39,23.776884]
[1728514502495,7.1721,139.43,139.39,30.950884]
[1728514503629,7.1721,139.43,139.4,1.43438744]
[1728514506095,21.43143289,139.49,139.41,25.21127603]
[1728514506402,21.43143289,139.49,139.42,0.12549]
[1728514506403,7.1701,139.47,139.42,0.12549]
[1728514506690,7.1701,139.47,139.43,23.776884]
[1728514508198,7.1707,139.46,139.43,23.776884]
[1728514511516,7.1707,139.46,139.44,1.4339861]
[1728514512220,7.1707,139.46,139.43,23.776884]
[1728514516717,7.1711,139.45,139.42,23.902374]
[1728514520411,7.1718,139.44,139.4,28.7967]
[1728514520601,7.1718,139.44,139.4,22.3476]
[1728514520800,19.35423289,139.49,139.4,22.3476]
[1728514520801,1.43143289,139.49,139.4,15.1742]
[1728514521005,7.1721,139.43,139.4,15.1742]
[1728514521417,7.1716,139.44,139.4,22.3477]
[1728514521723,21.43143289,139.49,139.4,116.95619768]
[1728514522224,21.43143289,139.49,139.41,24.027864]
[1728514523538,7.1711,139.45,139.41,31.200864]
[1728514524618,7.1711,139.45,139.42,1.43412769]
[1728514526341,7.1711,139.45,139.41,31.200864]
[1728514536855,7.1711,139.45,139.41,31.200864]
[1728514546076,7.1716,139.44,139.41,23.776884]
[1728514554780,1.43143289,139.47,139.41,23.776884]
[1728514554987,17.9238,139.48,139.42,1.43414343]
[1728514554988,7.1711,139.45,139.42,1.43414343]